fUST/lending_fUST_20240721
["ID","MTS","AMOUNT","RATE_DAILY","PERIOD"]
[332823815,1721554246565,-500.0,0.00013972,2]
[332823816,1721554246574,-500.0,0.00013972,2]
[332823818,1721554246583,-151.0,0.00013972,2]
[332823820,1721554246593,-151.0,0.00013972,2]
[332823821,1721554246602,-151.0,0.00013972,2]
[332823822,1721554246611,-151.0,0.00013972,2]
[332823823,1721554246620,-500.0,0.00013972,2]
[332823824,1721554246630,-361.05719119,0.00013972,2]
[332823825,1721554246640,-151.0,0.00013972,2]
[332823826,1721554246649,-151.0,0.00013972,2]
[332823827,1721554246659,-134.11804594,0.00013972,2]
[332823840,1721554246789,-401.02028102,0.00013698,2]
[332823842,1721554246800,-505.0,0.0001389,2]
[332823843,1721554246811,-16.88195406,0.00013972,2]
[332823844,1721554246822,-151.0,0.00013972,2]
[332823845,1721554246832,-500.0,0.00013972,2]
[332823846,1721554246843,-500.0,0.00013972,2]
[332823848,1721554246854,-1692.4,0.00013972,2]
[332823850,1721554246865,-500.0,0.00013972,2]
[332823852,1721554246875,-634.30962426,0.00013972,2]
[332823885,1721554749377,-273.37336231,9.703e-05,2]
[332823886,1721554749411,-154.79103211,9.999e-05,2]
[332823887,1721554749442,-256.7061551,9.999e-05,2]
[332823888,1721554749474,-521.35008694,9.999e-05,2]
[332823889,1721554749507,-500.67556622,0.00012119,2]
[332823890,1721554749540,-300.0,0.00012637,2]
[332823891,1721554749573,-300.0,0.00012637,2]
[332823892,1721554751055,273.37336231,9.9e-05,2]
[332823893,1721554758147,500.67556622,0.00012119,2]
[332823894,1721554758998,92.15866611,9.9e-05,2]
[332823895,1721554785867,-181.2146962,9.9e-05,2]
[332823896,1721554789280,273.37336231,9.9e-05,2]
[332823897,1721554789471,2622.19724529,9.9e-05,2]
[332823902,1721555018039,-292.11089888,9.703e-05,2]
[332823904,1721555061237,-157.0,9.703e-05,2]
[332823905,1721555084892,-163.0,9.703e-05,2]
[332823907,1721555103559,-241.0,9.703e-05,2]
[332823908,1721555124483,-300.0,9.702e-05,2]
[332823909,1721555124528,-1928.0,9.703e-05,2]
[332823918,1721555158037,-350.0,9.703e-05,2]
[332823919,1721555183984,-288.0,9.605e-05,2]
[332823921,1721555218687,-12.0,9.605e-05,2]
[332823922,1721555218732,-151.0,9.702e-05,2]
[332823925,1721555243352,-300.0,9.605e-05,2]
[332823926,1721555243384,-218.09499306,9.605e-05,2]
[332823927,1721555243416,-782.49449497,9.605e-05,2]
[332823928,1721555243584,-1323.82102394,9.605e-05,2]
[332823986,1721555432711,-300.0,9.604e-05,2]
[332823988,1721555432722,-2.0,9.605e-05,2]
[332823991,1721555432737,-3779.31705909,9.605e-05,2]
[332823993,1721555432746,-157.50132365,9.605e-05,2]
[332823995,1721555432756,-3998.08154278,9.605e-05,2]
[332823997,1721555432768,-708.93153936,9.605e-05,2]
[332823999,1721555432777,-542.54638972,9.605e-05,2]
[332824058,1721555440560,-3938.81838274,9.414e-05,2]
[332824060,1721555440570,-1082.75680879,9.605e-05,2]
[332824061,1721555440582,-7269.4883495,9.605e-05,2]
[332824062,1721555440591,-218.09499306,9.605e-05,2]
[332824063,1721555440600,-2106.31551891,9.605e-05,2]
[332824064,1721555440610,-155.70429949,9.999e-05,2]
[332824065,1721555440620,-600.13398143,9.999e-05,2]
[332824066,1721555440630,-154.79103211,9.999e-05,2]
[332824067,1721555440641,-521.35008694,9.999e-05,2]
[332824068,1721555440651,-1000.74887682,9.999e-05,2]
[332824069,1721555440660,-887.07601597,9.999e-05,2]
[332824070,1721555440671,-493.63662636,9.999e-05,2]
[332824071,1721555440681,-533.28027744,9.999e-05,2]
[332824072,1721555440691,-518.96291688,9.999e-05,2]
[332824073,1721555440702,-778.7273512,9.999e-05,2]
[332824074,1721555440712,-506.0856509,9.999e-05,2]
[332824075,1721555440722,-162.87421769,9.999e-05,2]
[332824076,1721555440733,-319.34367752,9.999e-05,2]
[332824077,1721555440744,-567.88989652,9.999e-05,2]
[332824078,1721555440754,-163.31805921,9.999e-05,2]
[332824079,1721555440764,-156.62960029,9.999e-05,2]
[332824080,1721555440774,-209.61899477,9.999e-05,2]
[332824081,1721555440783,-180.26214213,9.999e-05,2]
[332824082,1721555440795,-159.9761619,9.999e-05,2]
[332824083,1721555440805,-227.76591386,9.999e-05,2]
[332824084,1721555440814,-208.52011681,9.999e-05,2]
[332824085,1721555440824,-663.44744723,9.999e-05,2]
[332824086,1721555440838,-341.63558766,9.999e-05,2]
[332824087,1721555440848,-526.40635673,9.999e-05,2]
[332824088,1721555440859,-531.21907352,9.999e-05,2]
[332824089,1721555440870,-154.79103211,9.999e-05,2]
[332824090,1721555440880,-155.05699234,9.999e-05,2]
[332824091,1721555440890,-154.79103211,9.999e-05,2]
[332824092,1721555440902,-154.79103211,9.999e-05,2]
[332824093,1721555440912,-240.51585871,9.999e-05,2]
[332824094,1721555440923,-156.54596423,9.999e-05,2]
[332824095,1721555440935,-154.79103211,9.999e-05,2]
[332824096,1721555440944,-285.84381004,9.999e-05,2]
[332824097,1721555440954,-957.65884256,0.0001,2]
[332824098,1721555440968,-24900.0,0.00010308,2]
[332824099,1721555440980,-420.0,0.00010564,2]
[332824100,1721555440990,-410.8,0.00010959,2]
[332824101,1721555441002,-436.0,0.00011621,2]
[332824102,1721555441012,-326.24309362,0.00011642,2]
[332824103,1721555441025,-500.67556622,0.00012,2]
[332824104,1721555441034,-1780.89648988,0.000129,2]
[332824105,1721555441044,-1780.89648986,0.000129,2]
[332824106,1721555441054,-1780.89648986,0.000129,2]
[332824107,1721555441064,-2000.0,0.00013588,2]
[332824108,1721555441075,-4500.000001,0.00013596,2]
[332824109,1721555441087,-15512.42896853,0.00013598,2]
[332824110,1721555441098,-1629.7281909,0.00013598,2]
[332824111,1721555441109,-238.66,0.00013678,7]
[332824112,1721555441120,-366446.932729,0.00013688,2]
[332824113,1721555441131,-1873.22,0.00013698,2]
[332824114,1721555441141,-1873.22,0.00013698,2]
[332824115,1721555441152,-1873.22,0.00013698,2]
[332824116,1721555441163,-1873.22,0.00013698,2]
[332824117,1721555441173,-1873.22,0.00013698,2]
[332824118,1721555441182,-1873.22,0.00013698,2]
[332824119,1721555441191,-1873.22,0.00013698,2]
[332824120,1721555441201,-1873.22,0.00013698,2]
[332824121,1721555441210,-1873.22,0.00013698,2]
[332824122,1721555441220,-1873.22,0.00013698,2]
[332824123,1721555441229,-1873.22,0.00013698,2]
[332824124,1721555441239,-1873.22,0.00013698,2]
[332824125,1721555441248,-1873.22,0.00013698,2]
[332824126,1721555441258,-1873.22,0.00013698,2]
[332824127,1721555441268,-1873.22,0.00013698,2]
[332824128,1721555441277,-1873.22,0.00013698,2]
[332824129,1721555441288,-1873.22,0.00013698,2]
[332824130,1721555441297,-1873.22,0.00013698,2]
[332824131,1721555441307,-1873.22,0.00013698,2]
[332824132,1721555441316,-1873.22,0.00013698,2]
[332824133,1721555441327,-1873.22,0.00013698,2]
[332824134,1721555441556,-1873.22,0.00013698,2]
[332824135,1721555441566,-1873.22,0.00013698,2]
[332824136,1721555441577,-1873.26171819,0.00013698,2]
[332824137,1721555441587,-499.362028,0.00013698,2]
[332824138,1721555441597,-506.48670125,0.00013698,2]
[332824139,1721555441606,-512.57009351,0.00013698,2]
[332824140,1721555441616,-1453.14,0.00013698,2]
[332824141,1721555441635,-500.0,0.00013698,2]
[332824142,1721555441647,-500.0,0.00013698,2]
[332824143,1721555441658,-500.0,0.00013698,2]
[332824144,1721555441667,-500.0,0.00013698,2]
[332824145,1721555441677,-416.36063986,0.00013698,2]
[332824146,1721555441687,-500.24267927,0.00013698,2]
[332824147,1721555441698,-500.0,0.00013698,2]
[332824148,1721555441708,-500.0,0.00013698,2]
[332824149,1721555441719,-500.0,0.00013698,2]
[332824150,1721555441729,-501.99600103,0.00013698,2]
[332824151,1721555441739,-500.0,0.00013698,2]
[332824152,1721555441749,-500.0,0.00013698,2]
[332824153,1721555441759,-500.0,0.00013698,2]
[332824154,1721555441769,-500.76704196,0.00013698,2]
[332824155,1721555441780,-500.0,0.00013698,2]
[332824156,1721555441790,-1466.7,0.00013698,2]
[332824157,1721555441800,-500.0,0.00013698,2]
[332824158,1721555441811,-500.0,0.00013698,2]
[332824159,1721555441820,-500.0,0.00013698,2]
[332824160,1721555441833,-500.0,0.00013698,2]
[332824161,1721555441843,-500.0,0.00013698,2]
[332824162,1721555441854,-502.24635927,0.00013698,2]
[332824163,1721555441864,-515.01040945,0.00013698,2]
[332824164,1721555441874,-500.0,0.00013698,2]
[332824165,1721555441885,-500.0,0.00013698,2]
[332824166,1721555441895,-500.0,0.00013698,2]
[332824167,1721555441906,-500.0,0.00013698,2]
[332824168,1721555441915,-507.66557941,0.00013698,2]
[332824169,1721555441925,-500.0,0.00013698,2]
[332824170,1721555441935,-500.0,0.00013698,2]
[332824171,1721555441945,-500.0,0.00013698,2]
[332824172,1721555441955,-809.83,0.00013698,2]
[332824173,1721555441965,-790.39,0.00013698,2]
[332824174,1721555441975,-500.0,0.00013698,2]
[332824175,1721555441985,-500.0,0.00013698,2]
[332824176,1721555441999,-500.0,0.00013698,2]
[332824177,1721555442010,-581.65,0.00013698,2]
[332824178,1721555442024,-547.55,0.00013698,2]
[332824179,1721555442034,-500.0,0.00013698,2]
[332824180,1721555442044,-500.0,0.00013698,2]
[332824181,1721555442054,-500.0,0.00013698,2]
[332824182,1721555442066,-500.0,0.00013698,2]
[332824183,1721555442076,-236.48852208,0.00013698,2]
[332824184,1721555442086,-502.22351897,0.00013698,2]
[332824185,1721555442097,-500.0,0.00013698,2]
[332824186,1721555442107,-500.0,0.00013698,2]
[332824187,1721555442118,-500.0,0.00013698,2]
[332824188,1721555442128,-500.0,0.00013698,2]
[332824189,1721555442138,-181.62960455,0.00013698,2]
[332824190,1721555442148,-271.80768515,0.00013698,2]
[332824191,1721555442158,-500.0,0.00013698,2]
[332824192,1721555442168,-500.0,0.00013698,2]
[332824193,1721555442178,-500.0,0.00013698,2]
[332824194,1721555442190,-501.54732919,0.00013698,2]
[332824195,1721555442199,-500.0,0.00013698,2]
[332824196,1721555442209,-506.01830379,0.00013698,2]
[332824197,1721555442220,-504.84509433,0.00013698,2]
[332824198,1721555442229,-500.0,0.00013698,2]
[332824199,1721555442240,-500.0,0.00013698,2]
[332824200,1721555442250,-500.0,0.00013698,2]
[332824201,1721555442259,-375.83567183,0.00013698,2]
[332824202,1721555442270,-502.71174989,0.00013698,2]
[332824203,1721555442280,-500.0,0.00013698,2]
[332824204,1721555442290,-500.0,0.00013698,2]
[332824205,1721555442300,-500.0,0.00013698,2]
[332824206,1721555442310,-500.0,0.00013698,2]
[332824207,1721555442320,-507.11998073,0.00013698,2]
[332824208,1721555442332,-151.0,0.00013698,2]
[332824209,1721555442342,-500.0,0.00013698,2]
[332824210,1721555442352,-151.0,0.00013698,2]
[332824211,1721555442362,-536.52048978,0.00013698,2]
[332824212,1721555442371,-500.0,0.00013698,2]
[332824213,1721555442381,-500.0,0.00013698,2]
[332824214,1721555442391,-500.0,0.00013698,2]
[332824215,1721555442401,-500.0,0.00013698,2]
[332824216,1721555442411,-500.0,0.00013698,2]
[332824217,1721555442420,-500.0,0.00013698,2]
[332824218,1721555442430,-500.0,0.00013698,2]
[332824219,1721555442440,-500.0,0.00013698,2]
[332824220,1721555442450,-500.0,0.00013698,2]
[332824221,1721555442460,-501.07115651,0.00013698,2]
[332824222,1721555442473,-729.89,0.00013698,2]
[332824223,1721555442484,-500.0,0.00013698,2]
[332824224,1721555442494,-500.0,0.00013698,2]
[332824225,1721555442504,-538.31663561,0.00013698,2]
[332824226,1721555442514,-691.71,0.00013698,2]
[332824227,1721555442524,-500.0,0.00013698,2]
[332824228,1721555442535,-284.65200555,0.00013698,2]
[332824229,1721555442546,-500.0,0.00013698,2]
[332824230,1721555442556,-500.0,0.00013698,2]
[332824231,1721555442566,-153.78341379,0.00013698,2]
[332824232,1721555442576,-500.0,0.00013698,2]
[332824233,1721555442587,-500.0,0.00013698,2]
[332824234,1721555442597,-912.64,0.00013698,2]
[332824235,1721555442607,-500.0,0.00013698,2]
[332824236,1721555442616,-500.0,0.00013698,2]
[332824237,1721555442627,-500.0,0.00013698,2]
[332824238,1721555442637,-500.0,0.00013698,2]
[332824239,1721555442648,-554.37360989,0.00013698,2]
[332824240,1721555442658,-267.425649,0.00013698,2]
[332824241,1721555442669,-2388.42,0.00013698,2]
[332824242,1721555442680,-501.62910118,0.00013698,2]
[332824243,1721555442690,-500.0,0.00013698,2]
[332824244,1721555442700,-267.425649,0.00013698,2]
[332824245,1721555442711,-528.98572719,0.00013698,2]
[332824246,1721555442721,-500.0,0.00013698,2]
[332824247,1721555442732,-500.0,0.00013698,2]
[332824248,1721555442742,-500.0,0.00013698,2]
[332824249,1721555442752,-500.51950028,0.00013698,2]
[332824250,1721555442762,-500.0,0.00013698,2]
[332824251,1721555442772,-500.0,0.00013698,2]
[332824252,1721555442783,-500.0,0.00013698,2]
[332824253,1721555442793,-500.0,0.00013698,2]
[332824254,1721555442803,-500.0,0.00013698,2]
[332824255,1721555442814,-500.0,0.00013698,2]
[332824256,1721555442825,-151.0,0.00013698,2]
[332824257,1721555442836,-400.58724901,0.00013698,2]
[332824258,1721555442848,-405.15851305,0.00013698,2]
[332824259,1721555442859,-500.0,0.00013698,2]
[332824260,1721555442869,-500.0,0.00013698,2]
[332824261,1721555442879,-500.0,0.00013698,2]
[332824262,1721555442890,-868.2,0.00013698,2]
[332824263,1721555442901,-500.0,0.00013698,2]
[332824264,1721555442911,-500.0,0.00013698,2]
[332824265,1721555442921,-500.0,0.00013698,2]
[332824266,1721555442931,-500.0,0.00013698,2]
[332824267,1721555442941,-390.73947296,0.00013698,2]
[332824268,1721555442953,-500.0,0.00013698,2]
[332824269,1721555442963,-500.0,0.00013698,2]
[332824270,1721555442974,-502.14615165,0.00013698,2]
[332824271,1721555442986,-500.0,0.00013698,2]
[332824272,1721555442996,-500.0,0.00013698,2]
[332824273,1721555443006,-500.0,0.00013698,2]
[332824274,1721555443016,-613.36,0.00013698,2]
[332824276,1721555443029,-500.0,0.00013698,2]
[332824278,1721555443039,-500.0,0.00013698,2]
[332824280,1721555443049,-500.0,0.00013698,2]
[332824281,1721555443060,-500.0,0.00013698,2]
[332824282,1721555443070,-500.0,0.00013698,2]
[332824283,1721555443080,-609.08,0.00013698,2]
[332824285,1721555443090,-500.0,0.00013698,2]
[332824287,1721555443102,-500.0,0.00013698,2]
[332824289,1721555443112,-534.80916439,0.00013698,2]
[332824291,1721555443122,-500.0,0.00013698,2]
[332824294,1721555443132,-500.0,0.00013698,2]
[332824296,1721555443142,-500.0,0.00013698,2]
[332824297,1721555443152,-500.0,0.00013698,2]
[332824298,1721555443162,-500.0,0.00013698,2]
[332824299,1721555443171,-158.715353,0.00013698,2]
[332824300,1721555443182,-158.715353,0.00013698,2]
[332824301,1721555443192,-500.0,0.00013698,2]
[332824302,1721555443202,-158.715353,0.00013698,2]
[332824303,1721555443212,-158.715353,0.00013698,2]
[332824304,1721555443222,-500.0,0.00013698,2]
[332824305,1721555443233,-500.0,0.00013698,2]
[332824306,1721555443243,-500.0,0.00013698,2]
[332824307,1721555443253,-500.0,0.00013698,2]
[332824308,1721555443263,-500.0,0.00013698,2]
[332824309,1721555443273,-349.684423,0.00013698,2]
[332824310,1721555443283,-349.684423,0.00013698,2]
[332824311,1721555443294,-500.0,0.00013698,2]
[332824312,1721555443305,-517.89249247,0.00013698,2]
[332824313,1721555443315,-349.684423,0.00013698,2]
[332824314,1721555443325,-349.684423,0.00013698,2]
[332824315,1721555443335,-500.0,0.00013698,2]
[332824316,1721555443346,-500.0,0.00013698,2]
[332824317,1721555443356,-500.0,0.00013698,2]
[332824319,1721555443365,-500.0,0.00013698,2]
[332824321,1721555443375,-405.93328028,0.00013698,2]
[332824322,1721555443384,-500.0,0.00013698,2]
[332824323,1721555443394,-500.37962165,0.00013698,2]
[332824324,1721555443404,-516.03261185,0.00013698,2]
[332824325,1721555443414,-500.0,0.00013698,2]
[332824326,1721555443423,-500.0,0.00013698,2]
[332824327,1721555443433,-500.0,0.00013698,2]
[332824328,1721555443443,-500.0,0.00013698,2]
[332824329,1721555443452,-533.07630241,0.00013698,2]
[332824330,1721555443462,-500.0,0.00013698,2]
[332824331,1721555443472,-500.0,0.00013698,2]
[332824332,1721555443481,-500.0,0.00013698,2]
[332824333,1721555443493,-500.0,0.00013698,2]
[332824335,1721555443503,-500.0,0.00013698,2]
[332824336,1721555443514,-500.0,0.00013698,2]
[332824337,1721555443524,-500.0,0.00013698,2]
[332824338,1721555443534,-500.0,0.00013698,2]
[332824339,1721555443544,-500.0,0.00013698,2]
[332824340,1721555443554,-169.113755,0.00013698,2]
[332824341,1721555443564,-169.113755,0.00013698,2]
[332824342,1721555443575,-500.0,0.00013698,2]
[332824343,1721555443586,-500.0,0.00013698,2]
[332824344,1721555443596,-151.0,0.00013698,2]
[332824345,1721555443605,-151.0,0.00013698,2]
[332824346,1721555443615,-500.0,0.00013698,2]
[332824347,1721555443624,-500.0,0.00013698,2]
[332824348,1721555443633,-1324.26,0.00013698,2]
[332824349,1721555443644,-500.0,0.00013698,2]
[332824350,1721555443655,-889.63,0.00013698,2]
[332824351,1721555443666,-500.0,0.00013698,2]
[332824352,1721555443679,-500.0,0.00013698,2]
[332824353,1721555443689,-503.38783401,0.00013698,2]
[332824354,1721555443698,-500.0,0.00013698,2]
[332824355,1721555443708,-725.84,0.00013698,2]
[332824356,1721555443718,-500.0,0.00013698,2]
[332824357,1721555443728,-2453.11,0.00013698,2]
[332824358,1721555443737,-500.0,0.00013698,2]
[332824359,1721555443747,-151.0,0.00013698,2]
[332824360,1721555443756,-151.0,0.00013698,2]
[332824361,1721555443766,-151.0,0.00013698,2]
[332824362,1721555443775,-151.0,0.00013698,2]
[332824363,1721555443784,-151.0,0.00013698,2]
[332824364,1721555443793,-2502.19,0.00013698,2]
[332824365,1721555443803,-383.64464745,0.00013698,2]
[332824366,1721555443812,-151.0,0.00013698,2]
[332824368,1721555443822,-154.485045,0.00013698,2]
[332824370,1721555443832,-224.644796,0.00013698,2]
[332824372,1721555443842,-500.0,0.00013698,2]
[332824374,1721555443851,-500.0,0.00013698,2]
[332824377,1721555443860,-607.0,0.00013698,2]
[332824378,1721555443870,-528.97,0.00013698,2]
[332824379,1721555443879,-658.1,0.00013698,2]
[332824380,1721555443888,-1073.15,0.00013698,2]
[332824381,1721555443898,-500.0,0.00013698,2]
[332824382,1721555443907,-500.0,0.00013698,2]
[332824383,1721555443916,-151.0,0.00013698,2]
[332824384,1721555443927,-755.32,0.00013698,2]
[332824385,1721555443935,-151.0,0.00013698,2]
[332824386,1721555443944,-151.0,0.00013698,2]
[332824387,1721555443954,-819.53,0.00013698,2]
[332824388,1721555443963,-500.0,0.00013698,2]
[332824389,1721555443973,-819.53,0.00013698,2]
[332824390,1721555443982,-819.53,0.00013698,2]
[332824391,1721555443991,-819.53,0.00013698,2]
[332824392,1721555444000,-819.53,0.00013698,2]
[332824393,1721555444010,-819.53,0.00013698,2]
[332824394,1721555444023,-500.0,0.00013698,2]
[332824395,1721555444033,-819.53,0.00013698,2]
[332824396,1721555444042,-819.53,0.00013698,2]
[332824397,1721555444053,-819.53,0.00013698,2]
[332824398,1721555444063,-151.0,0.00013698,2]
[332824399,1721555444072,-819.53,0.00013698,2]
[332824400,1721555444083,-151.0,0.00013698,2]
[332824401,1721555444092,-819.53,0.00013698,2]
[332824402,1721555444103,-819.53,0.00013698,2]
[332824403,1721555444112,-819.53,0.00013698,2]
[332824404,1721555444121,-151.0,0.00013698,2]
[332824405,1721555444131,-819.53,0.00013698,2]
[332824406,1721555444140,-500.0,0.00013698,2]
[332824407,1721555444149,-819.53,0.00013698,2]
[332824408,1721555444158,-819.53,0.00013698,2]
[332824409,1721555444168,-819.53,0.00013698,2]
[332824410,1721555444177,-819.53,0.00013698,2]
[332824411,1721555444186,-819.53,0.00013698,2]
[332824412,1721555444195,-500.0,0.00013698,2]
[332824413,1721555444205,-819.53,0.00013698,2]
[332824414,1721555444215,-819.53,0.00013698,2]
[332824415,1721555444224,-819.53,0.00013698,2]
[332824416,1721555444233,-819.53,0.00013698,2]
[332824417,1721555444243,-819.55,0.00013698,2]
[332824418,1721555444252,-504.70362065,0.00013698,2]
[332824419,1721555444261,-500.0,0.00013698,2]
[332824420,1721555444271,-500.0,0.00013698,2]
[332824421,1721555444280,-500.0,0.00013698,2]
[332824422,1721555444289,-500.0,0.00013698,2]
[332824423,1721555444298,-500.0,0.00013698,2]
[332824424,1721555444308,-500.0,0.00013698,2]
[332824425,1721555444318,-696.599873,0.00013698,2]
[332824426,1721555444327,-696.599873,0.00013698,2]
[332824427,1721555444337,-500.0,0.00013698,2]
[332824428,1721555444347,-500.0,0.00013698,2]
[332824429,1721555444357,-500.0,0.00013698,2]
[332824430,1721555444366,-500.0,0.00013698,2]
[332824431,1721555444376,-500.0,0.00013698,2]
[332824432,1721555444385,-696.599873,0.00013698,2]
[332824433,1721555444394,-696.599873,0.00013698,2]
[332824434,1721555444403,-733.92,0.00013698,2]
[332824435,1721555444413,-500.0,0.00013698,2]
[332824436,1721555444423,-500.0,0.00013698,2]
[332824437,1721555444432,-500.0,0.00013698,2]
[332824438,1721555444441,-500.0,0.00013698,2]
[332824439,1721555444451,-500.0,0.00013698,2]
[332824440,1721555444460,-500.0,0.00013698,2]
[332824441,1721555444469,-151.0,0.00013698,2]
[332824442,1721555444478,-596.56,0.00013698,2]
[332824443,1721555444487,-406.32016621,0.00013698,2]
[332824444,1721555444496,-607.1,0.00013698,2]
[332824445,1721555444506,-554.81,0.00013698,2]
[332824446,1721555444515,-500.0,0.00013698,2]
[332824447,1721555444524,-500.0,0.00013698,2]
[332824448,1721555444533,-500.0,0.00013698,2]
[332824449,1721555444542,-500.0,0.00013698,2]
[332824450,1721555444551,-500.0,0.00013698,2]
[332824451,1721555444560,-508.29011222,0.00013698,2]
[332824452,1721555444569,-1820.2,0.00013698,2]
[332824453,1721555444579,-1181.32,0.00013698,2]
[332824454,1721555444589,-1714.34,0.00013698,2]
[332824455,1721555444598,-500.0,0.00013698,2]
[332824456,1721555444607,-500.0,0.00013698,2]
[332824457,1721555444617,-500.0,0.00013698,2]
[332824458,1721555444626,-500.0,0.00013698,2]
[332824459,1721555444636,-500.0,0.00013698,2]
[332824460,1721555444646,-500.0,0.00013698,2]
[332824461,1721555444659,-500.0,0.00013698,2]
[332824462,1721555444669,-211.42433015,0.00013698,2]
[332824463,1721555444678,-513.01,0.00013698,2]
[332824464,1721555444688,-662.59,0.00013698,2]
[332824465,1721555444698,-500.0,0.00013698,2]
[332824466,1721555444708,-500.0,0.00013698,2]
[332824467,1721555444717,-500.0,0.00013698,2]
[332824468,1721555444727,-2516.03,0.00013698,2]
[332824469,1721555444737,-643.79,0.00013698,2]
[332824470,1721555444746,-554.61,0.00013698,2]
[332824472,1721555444755,-500.0,0.00013698,2]
[332824473,1721555444764,-500.0,0.00013698,2]
[332824474,1721555444774,-500.0,0.00013698,2]
[332824475,1721555444783,-731.29,0.00013698,2]
[332824476,1721555444792,-500.0,0.00013698,2]
[332824477,1721555444801,-500.0,0.00013698,2]
[332824478,1721555444811,-151.0,0.00013698,2]
[332824479,1721555444820,-151.0,0.00013698,2]
[332824480,1721555444830,-151.0,0.00013698,2]
[332824481,1721555444839,-151.0,0.00013698,2]
[332824482,1721555444849,-151.0,0.00013698,2]
[332824483,1721555444858,-151.0,0.00013698,2]
[332824484,1721555444868,-151.0,0.00013698,2]
[332824485,1721555444877,-1752.98,0.00013698,2]
[332824486,1721555444886,-151.0,0.00013698,2]
[332824487,1721555444895,-814.53,0.00013698,2]
[332824488,1721555444905,-500.0,0.00013698,2]
[332824489,1721555444914,-500.0,0.00013698,2]
[332824490,1721555444924,-500.0,0.00013698,2]
[332824491,1721555444934,-500.0,0.00013698,2]
[332824492,1721555444943,-500.0,0.00013698,2]
[332824493,1721555444952,-500.0,0.00013698,2]
[332824494,1721555444962,-535.79,0.00013698,2]
[332824495,1721555444972,-500.0,0.00013698,2]
[332824496,1721555444982,-500.0,0.00013698,2]
[332824497,1721555444992,-500.0,0.00013698,2]
[332824498,1721555445002,-500.0,0.00013698,2]
[332824499,1721555445013,-500.0,0.00013698,2]
[332824500,1721555445028,-779.85,0.00013698,2]
[332824501,1721555445038,-327.358996,0.00013698,2]
[332824502,1721555445047,-327.358996,0.00013698,2]
[332824503,1721555445056,-327.358996,0.00013698,2]
[332824504,1721555445066,-327.358996,0.00013698,2]
[332824505,1721555445076,-500.0,0.00013698,2]
[332824506,1721555445088,-327.358996,0.00013698,2]
[332824507,1721555445099,-327.358996,0.00013698,2]
[332824508,1721555445113,-327.358996,0.00013698,2]
[332824509,1721555445123,-327.358996,0.00013698,2]
[332824510,1721555445132,-500.0,0.00013698,2]
[332824511,1721555445141,-500.0,0.00013698,2]
[332824512,1721555445151,-500.0,0.00013698,2]
[332824513,1721555445160,-829.85,0.00013698,2]
[332824514,1721555445169,-827.08,0.00013698,2]
[332824515,1721555445179,-500.0,0.00013698,2]
[332824516,1721555445190,-500.0,0.00013698,2]
[332824517,1721555445199,-1004.92,0.00013698,2]
[332824518,1721555445209,-500.0,0.00013698,2]
[332824519,1721555445218,-500.0,0.00013698,2]
[332824520,1721555445227,-574.58,0.00013698,2]
[332824521,1721555445237,-500.0,0.00013698,2]
[332824522,1721555445247,-500.0,0.00013698,2]
[332824523,1721555445256,-500.0,0.00013698,2]
[332824524,1721555445265,-500.0,0.00013698,2]